[Event "Titled Tuesday Blitz January 03 Early 2023"]
[White "Real_taiatai"]
[Black "Cnejev, Vladimir-Alexandru"]
[BlackFideId "1260898"]
[WhiteElo "2390"]
[BlackElo "2374"]
[Result "0-1"]
[Round "03"]
[TimeControl "180+2"]
[Date "2023.01.03"]
[WhiteClock "0:00:28"]
[BlackClock "0:00:09"]

1. e4 {[%clk 0:02:54]}  e5 {[%clk 0:02:59]} 2. Nf3 {[%clk 0:02:54]}  Nc6 {[%clk 0:02:59]} 3. Bb5 {[%clk 0:02:54]}  a6 {[%clk 0:02:58]} 4. Ba4 {[%clk 0:02:54]}  b5 {[%clk 0:02:58]} 5. Bb3 {[%clk 0:02:54]}  Bb7 {[%clk 0:02:59]} 6. d4 {[%clk 0:02:50]}  d6 {[%clk 0:02:54]} 7. a4 {[%clk 0:02:41]}  Be7 {[%clk 0:02:53]} 8. O-O {[%clk 0:02:41]}  Nf6 {[%clk 0:02:52]} 9. Re1 {[%clk 0:02:41]}  Nxd4 {[%clk 0:02:37]} 10. Nxd4 {[%clk 0:02:39]}  exd4 {[%clk 0:02:38]} 11. c3 {[%clk 0:02:12]}  O-O {[%clk 0:02:33]} 12. cxd4 {[%clk 0:01:59]}  Nxe4 {[%clk 0:02:31]} 13. Qd3 {[%clk 0:01:54]}  c5 {[%clk 0:01:40]} 14. axb5 {[%clk 0:01:53]}  axb5 {[%clk 0:01:38]} 15. Rxa8 {[%clk 0:01:50]}  Qxa8 {[%clk 0:01:22]} 16. Qxb5 {[%clk 0:01:51]}  Bf6 {[%clk 0:01:07]} 17. dxc5 {[%clk 0:01:36]}  Nxc5 {[%clk 0:01:06]} 18. f3 {[%clk 0:00:30]}  Ba6 {[%clk 0:00:33]} 19. Qb4 {[%clk 0:00:10]}  Rb8 {[%clk 0:00:20]} 20. Bd5 {[%clk 0:00:11]}  Qa7 {[%clk 0:00:14]} 21. Qd2 {[%clk 0:00:09]}  Nd3+ {[%clk 0:00:12]} 22. Kh1 {[%clk 0:00:09]}  Nxe1 {[%clk 0:00:12]} 23. Qxe1 {[%clk 0:00:09]}  Qc5 {[%clk 0:00:10]} 24. Ba2 {[%clk 0:00:08]}  Rc8 {[%clk 0:00:08]} 25. Nc3 {[%clk 0:00:08]}  Bxc3 {[%clk 0:00:07]} 26. bxc3 {[%clk 0:00:09]}  Qxc3 {[%clk 0:00:08]} 27. Bd2 {[%clk 0:00:10]}  Qb2 {[%clk 0:00:05]} 28. Bd5 {[%clk 0:00:09]}  h6 {[%clk 0:00:05]} 29. h3 {[%clk 0:00:09]}  Qe5 {[%clk 0:00:04]} 30. Qe4 {[%clk 0:00:06]}  Qxe4 {[%clk 0:00:04]} 31. fxe4 {[%clk 0:00:07]}  Re8 {[%clk 0:00:04]} 32. Bf4 {[%clk 0:00:07]}  Rd8 {[%clk 0:00:03]} 33. Be3 {[%clk 0:00:08]}  Bc8 {[%clk 0:00:03]} 34. Bb6 {[%clk 0:00:09]}  Rd7 {[%clk 0:00:03]} 35. Bc6 {[%clk 0:00:09]}  Re7 {[%clk 0:00:03]} 36. Bd8 {[%clk 0:00:10]}  Re5 {[%clk 0:00:02]} 37. Bc7 {[%clk 0:00:10]}  Rc5 {[%clk 0:00:03]} 38. Bxd6 {[%clk 0:00:10]}  Rxc6 {[%clk 0:00:03]} 39. e5 {[%clk 0:00:10]}  Rc1+ {[%clk 0:00:03]} 40. Kh2 {[%clk 0:00:11]}  Be6 {[%clk 0:00:04]} 41. Kg3 {[%clk 0:00:12]}  Rc2 {[%clk 0:00:04]} 42. Kf4 {[%clk 0:00:13]}  Rxg2 {[%clk 0:00:04]} 43. Kf3 {[%clk 0:00:13]}  Bxh3 {[%clk 0:00:03]} 44. e6 {[%clk 0:00:14]}  fxe6 {[%clk 0:00:03]} 45. Be5 {[%clk 0:00:14]}  Rg6 {[%clk 0:00:03]} 46. Bg3 {[%clk 0:00:15]}  Kf7 {[%clk 0:00:04]} 47. Bh4 {[%clk 0:00:16]}  Rf6+ {[%clk 0:00:05]} 48. Bxf6 {[%clk 0:00:16]}  Kxf6 {[%clk 0:00:05]} 49. Kg3 {[%clk 0:00:17]}  Bf5 {[%clk 0:00:06]} 50. Kh4 {[%clk 0:00:18]}  g5+ {[%clk 0:00:07]} 51. Kh5 {[%clk 0:00:19]}  g4 {[%clk 0:00:07]} 52. Kh4 {[%clk 0:00:19]}  Kg6 {[%clk 0:00:07]} 53. Kg3 {[%clk 0:00:20]}  h5 {[%clk 0:00:08]} 54. Kh4 {[%clk 0:00:21]}  e5 {[%clk 0:00:08]} 55. Kg3 {[%clk 0:00:22]}  Kg5 {[%clk 0:00:08]} 56. Kg2 {[%clk 0:00:23]}  h4 {[%clk 0:00:09]} 57. Kh2 {[%clk 0:00:23]}  Kf4 {[%clk 0:00:10]} 58. Kg2 {[%clk 0:00:24]}  g3 {[%clk 0:00:09]} 59. Kg1 {[%clk 0:00:24]}  h3 {[%clk 0:00:10]} 60. Kh1 {[%clk 0:00:25]}  Be4+ {[%clk 0:00:10]} 61. Kg1 {[%clk 0:00:26]}  h2+ {[%clk 0:00:10]} 62. Kf1 {[%clk 0:00:27]}  h1=Q+ {[%clk 0:00:11]} 63. Ke2 {[%clk 0:00:28]}  Qf3+ {[%clk 0:00:12]} 64. Ke1 {[%clk 0:00:28]}  g2 {[%clk 0:00:10]} 65. Kd2 {[%clk 0:00:29]}  Qe3+ {[%clk 0:00:10]} 66. Kd1 {[%clk 0:00:28]}  g1=Q# {[%clk 0:00:09]} 0-1


[Site "https://www.chess.com"]

[Event "Titled Tuesday Blitz January 03 Early 2023"]
[White "aidenzhouu"]
[Black "Christie, Joshua"]
[BlackFideId "7402074"]
[WhiteElo "2382"]
[BlackElo "2294"]
[Result "1/2-1/2"]
[Round "03"]
[TimeControl "180+2"]
[Date "2023.01.03"]
[WhiteClock "0:00:26"]
[BlackClock "0:00:14"]

1. d4 {[%clk 0:03:00]}  Nf6 {[%clk 0:02:59]} 2. c4 {[%clk 0:02:59]}  e6 {[%clk 0:02:59]} 3. Nf3 {[%clk 0:03:00]}  Bb4+ {[%clk 0:03:00]} 4. Bd2 {[%clk 0:02:59]}  Qe7 {[%clk 0:02:59]} 5. g3 {[%clk 0:02:58]}  O-O {[%clk 0:02:59]} 6. Bg2 {[%clk 0:02:59]}  Bxd2+ {[%clk 0:03:00]} 7. Qxd2 {[%clk 0:02:58]}  d6 {[%clk 0:03:00]} 8. Nc3 {[%clk 0:02:58]}  Re8 {[%clk 0:03:00]} 9. O-O {[%clk 0:02:58]}  e5 {[%clk 0:03:01]} 10. e4 {[%clk 0:02:57]}  Bg4 {[%clk 0:02:59]} 11. Ne1 {[%clk 0:02:41]}  Nc6 {[%clk 0:02:49]} 12. Nc2 {[%clk 0:02:36]}  a5 {[%clk 0:02:44]} 13. Rae1 {[%clk 0:02:19]}  exd4 {[%clk 0:02:15]} 14. Nxd4 {[%clk 0:02:19]}  Nxd4 {[%clk 0:02:16]} 15. Qxd4 {[%clk 0:02:20]}  Qe5 {[%clk 0:02:16]} 16. Qxe5 {[%clk 0:02:14]}  dxe5 {[%clk 0:02:15]} 17. f3 {[%clk 0:02:07]}  Be6 {[%clk 0:02:02]} 18. Nd5 {[%clk 0:02:07]}  Rac8 {[%clk 0:02:01]} 19. b3 {[%clk 0:01:54]}  c6 {[%clk 0:02:00]} 20. Nxf6+ {[%clk 0:01:52]}  gxf6 {[%clk 0:01:59]} 21. Rd1 {[%clk 0:01:48]}  Rcd8 {[%clk 0:02:00]} 22. Kf2 {[%clk 0:01:16]}  c5 {[%clk 0:01:57]} 23. Rxd8 {[%clk 0:01:16]}  Rxd8 {[%clk 0:01:56]} 24. Ke2 {[%clk 0:01:17]}  Kf8 {[%clk 0:01:47]} 25. Rd1 {[%clk 0:01:14]}  Rd4 {[%clk 0:01:39]} 26. Rxd4 {[%clk 0:00:52]}  cxd4 {[%clk 0:01:40]} 27. Kd3 {[%clk 0:00:52]}  Ke7 {[%clk 0:01:39]} 28. a3 {[%clk 0:00:48]}  b5 {[%clk 0:01:37]} 29. f4 {[%clk 0:00:36]}  bxc4+ {[%clk 0:01:26]} 30. bxc4 {[%clk 0:00:36]}  Kd6 {[%clk 0:01:27]} 31. f5 {[%clk 0:00:28]}  Bc8 {[%clk 0:01:26]} 32. Bf3 {[%clk 0:00:28]}  Bd7 {[%clk 0:00:34]} 33. Bh5 {[%clk 0:00:26]}  Be8 {[%clk 0:00:35]} 34. h4 {[%clk 0:00:20]}  h6 {[%clk 0:00:32]} 35. Bd1 {[%clk 0:00:20]}  Kc5 {[%clk 0:00:30]} 36. Bh5 {[%clk 0:00:21]}  Kb6 {[%clk 0:00:21]} 37. Bd1 {[%clk 0:00:20]}  a4 {[%clk 0:00:21]} 38. Bh5 {[%clk 0:00:21]}  Kc5 {[%clk 0:00:19]} 39. Bd1 {[%clk 0:00:22]}  Kd6 {[%clk 0:00:15]} 40. Bh5 {[%clk 0:00:21]}  Ke7 {[%clk 0:00:14]} 41. Bd1 {[%clk 0:00:21]}  Bc6 {[%clk 0:00:14]} 42. Bh5 {[%clk 0:00:22]}  Bb7 {[%clk 0:00:14]} 43. Bf3 {[%clk 0:00:22]}  Ba6 {[%clk 0:00:14]} 44. Bh5 {[%clk 0:00:23]}  Kf8 {[%clk 0:00:15]} 45. Bf3 {[%clk 0:00:23]}  Kg7 {[%clk 0:00:15]} 46. Bh5 {[%clk 0:00:24]}  Kf8 {[%clk 0:00:16]} 47. Bf3 {[%clk 0:00:24]}  Ke7 {[%clk 0:00:16]} 48. Bh5 {[%clk 0:00:25]}  Bb7 {[%clk 0:00:16]} 49. Bf3 {[%clk 0:00:24]}  Bc6 {[%clk 0:00:16]} 50. Bh5 {[%clk 0:00:24]}  Be8 {[%clk 0:00:17]} 51. Bg4 {[%clk 0:00:25]}  Kd6 {[%clk 0:00:17]} 52. Bh5 {[%clk 0:00:26]}  Kc5 {[%clk 0:00:18]} 53. Be2 {[%clk 0:00:26]}  Bd7 {[%clk 0:00:17]} 54. Bh5 {[%clk 0:00:26]}  Be8 {[%clk 0:00:14]} 1/2-1/2


[Site "https://www.chess.com"]

[Event "Titled Tuesday Blitz January 03 Early 2023"]
[White "Leschinsky, Gary"]
[Black "Tologon tegin, Semetei"]
[WhiteFideId "30951321"]
[BlackFideId "13800574"]
[WhiteElo "1969"]
[BlackElo "2372"]
[Result "1-0"]
[Round "03"]
[TimeControl "180+2"]
[Date "2023.01.03"]
[WhiteClock "0:00:06"]
[BlackClock "0:00:46"]

1. d4 {[%clk 0:03:00]}  Nf6 {[%clk 0:02:57]} 2. c4 {[%clk 0:03:01]}  e6 {[%clk 0:02:56]} 3. Nc3 {[%clk 0:03:00]}  Bb4 {[%clk 0:02:55]} 4. f3 {[%clk 0:02:54]}  c5 {[%clk 0:02:54]} 5. d5 {[%clk 0:02:54]}  exd5 {[%clk 0:02:55]} 6. cxd5 {[%clk 0:02:54]}  d6 {[%clk 0:02:54]} 7. e4 {[%clk 0:02:54]}  O-O {[%clk 0:02:54]} 8. Bd3 {[%clk 0:02:49]}  Nbd7 {[%clk 0:02:54]} 9. Ne2 {[%clk 0:02:49]}  Re8 {[%clk 0:02:53]} 10. O-O {[%clk 0:02:50]}  Ne5 {[%clk 0:02:53]} 11. a3 {[%clk 0:02:49]}  Ba5 {[%clk 0:02:52]} 12. Ng3 {[%clk 0:02:47]}  c4 {[%clk 0:02:50]} 13. Be2 {[%clk 0:02:47]}  a6 {[%clk 0:02:40]} 14. a4 {[%clk 0:02:42]}  b5 {[%clk 0:02:37]} 15. axb5 {[%clk 0:02:40]}  axb5 {[%clk 0:02:38]} 16. Be3 {[%clk 0:02:32]}  Bd7 {[%clk 0:02:34]} 17. Qc2 {[%clk 0:01:56]}  h6 {[%clk 0:02:27]} 18. Nd1 {[%clk 0:01:52]}  Qc7 {[%clk 0:02:24]} 19. Kh1 {[%clk 0:01:41]}  Bb6 {[%clk 0:02:21]} 20. Rxa8 {[%clk 0:01:37]}  Rxa8 {[%clk 0:02:19]} 21. b3 {[%clk 0:01:35]}  Bxe3 {[%clk 0:02:13]} 22. Nxe3 {[%clk 0:01:36]}  c3 {[%clk 0:02:13]} 23. b4 {[%clk 0:01:31]}  Ra3 {[%clk 0:02:12]} 24. Rc1 {[%clk 0:01:22]}  Qa7 {[%clk 0:02:06]} 25. Ngf5 {[%clk 0:01:08]}  g6 {[%clk 0:01:52]} 26. Nxh6+ {[%clk 0:01:02]}  Kg7 {[%clk 0:01:52]} 27. Nhg4 {[%clk 0:01:03]}  Nfxg4 {[%clk 0:01:35]} 28. Nxg4 {[%clk 0:00:58]}  Bxg4 {[%clk 0:01:32]} 29. fxg4 {[%clk 0:00:58]}  Ra2 {[%clk 0:01:22]} 30. Qd1 {[%clk 0:00:39]}  Rd2 {[%clk 0:01:12]} 31. Qe1 {[%clk 0:00:36]}  Qe3 {[%clk 0:01:11]} 32. Bxb5 {[%clk 0:00:25]}  Qxe1+ {[%clk 0:01:11]} 33. Rxe1 {[%clk 0:00:26]}  c2 {[%clk 0:01:11]} 34. Ba4 {[%clk 0:00:26]}  Rd1 {[%clk 0:01:11]} 35. Rxd1 {[%clk 0:00:25]}  cxd1=Q+ {[%clk 0:01:11]} 36. Bxd1 {[%clk 0:00:26]}  Nd3 {[%clk 0:01:11]} 37. b5 {[%clk 0:00:18]}  Kf6 {[%clk 0:01:10]} 38. b6 {[%clk 0:00:17]}  Nc5 {[%clk 0:01:10]} 39. Ba4 {[%clk 0:00:17]}  Ke5 {[%clk 0:01:10]} 40. Bc6 {[%clk 0:00:16]}  Kxe4 {[%clk 0:01:09]} 41. b7 {[%clk 0:00:17]}  Na6 {[%clk 0:01:09]} 42. h3 {[%clk 0:00:12]}  Nb8 {[%clk 0:01:06]} 43. Kh2 {[%clk 0:00:12]}  Kd4 {[%clk 0:01:06]} 44. h4 {[%clk 0:00:10]}  Ke5 {[%clk 0:00:58]} 45. Kg3 {[%clk 0:00:10]}  Na6 {[%clk 0:00:56]} 46. h5 {[%clk 0:00:09]}  gxh5 {[%clk 0:00:56]} 47. gxh5 {[%clk 0:00:10]}  Kf6 {[%clk 0:00:57]} 48. Kf4 {[%clk 0:00:09]}  Nb8 {[%clk 0:00:56]} 49. g4 {[%clk 0:00:09]}  Na6 {[%clk 0:00:53]} 50. g5+ {[%clk 0:00:09]}  Kg7 {[%clk 0:00:53]} 51. Kf5 {[%clk 0:00:09]}  Nb8 {[%clk 0:00:51]} 52. h6+ {[%clk 0:00:10]}  Kh7 {[%clk 0:00:51]} 53. Kf6 {[%clk 0:00:10]}  Kh8 {[%clk 0:00:50]} 54. Ke7 {[%clk 0:00:09]}  Kh7 {[%clk 0:00:48]} 55. Kxf7 {[%clk 0:00:09]}  Kh8 {[%clk 0:00:48]} 56. g6 {[%clk 0:00:05]}  Nd7 {[%clk 0:00:48]} 57. g7+ {[%clk 0:00:05]}  Kh7 {[%clk 0:00:46]} 58. g8=Q+ {[%clk 0:00:06]} 1-0


[Site "https://www.chess.com"]

[Event "Titled Tuesday Blitz January 03 Early 2023"]
[White "Fiorito, Francisco"]
[Black "Perez Rodriguez, Jennifer"]
[WhiteFideId "180165"]
[BlackFideId "3507831"]
[WhiteElo "2305"]
[BlackElo "2242"]
[Result "0-1"]
[Round "03"]
[TimeControl "180+2"]
[Date "2023.01.03"]
[WhiteClock "0:00:13"]
[BlackClock "0:00:37"]

1. Nf3 {[%clk 0:03:00]}  d5 {[%clk 0:02:59]} 2. d4 {[%clk 0:03:01]}  Nf6 {[%clk 0:02:59]} 3. Bf4 {[%clk 0:03:01]}  c5 {[%clk 0:02:57]} 4. e3 {[%clk 0:03:00]}  Nc6 {[%clk 0:02:57]} 5. Be2 {[%clk 0:02:58]}  Bf5 {[%clk 0:02:55]} 6. O-O {[%clk 0:02:55]}  e6 {[%clk 0:02:55]} 7. c3 {[%clk 0:02:55]}  Qb6 {[%clk 0:02:54]} 8. Qc1 {[%clk 0:02:54]}  Rc8 {[%clk 0:02:53]} 9. dxc5 {[%clk 0:02:46]}  Bxc5 {[%clk 0:02:52]} 10. Nbd2 {[%clk 0:02:46]}  h6 {[%clk 0:02:50]} 11. a4 {[%clk 0:02:39]}  a5 {[%clk 0:02:47]} 12. Bb5 {[%clk 0:02:38]}  O-O {[%clk 0:02:46]} 13. Nb3 {[%clk 0:02:38]}  Be7 {[%clk 0:02:45]} 14. Qd2 {[%clk 0:02:29]}  Ne4 {[%clk 0:02:44]} 15. Qe2 {[%clk 0:02:29]}  Bg4 {[%clk 0:02:31]} 16. h3 {[%clk 0:02:26]}  Bh5 {[%clk 0:02:30]} 17. g4 {[%clk 0:02:17]}  Bg6 {[%clk 0:02:26]} 18. Ne5 {[%clk 0:02:17]}  Nxe5 {[%clk 0:02:25]} 19. Bxe5 {[%clk 0:02:18]}  Bd6 {[%clk 0:02:16]} 20. Bxd6 {[%clk 0:02:12]}  Nxd6 {[%clk 0:02:15]} 21. Rfc1 {[%clk 0:01:44]}  Rfd8 {[%clk 0:02:06]} 22. Nd4 {[%clk 0:01:39]}  e5 {[%clk 0:02:03]} 23. Nf3 {[%clk 0:01:40]}  f6 {[%clk 0:02:00]} 24. Nh4 {[%clk 0:01:32]}  Bf7 {[%clk 0:01:55]} 25. Bd3 {[%clk 0:01:32]}  Nc4 {[%clk 0:01:43]} 26. Rab1 {[%clk 0:01:28]}  Nd6 {[%clk 0:01:39]} 27. b4 {[%clk 0:01:25]}  d4 {[%clk 0:01:34]} 28. bxa5 {[%clk 0:01:24]}  Qxa5 {[%clk 0:01:34]} 29. cxd4 {[%clk 0:01:23]}  exd4 {[%clk 0:01:31]} 30. exd4 {[%clk 0:01:24]}  Qxa4 {[%clk 0:01:27]} 31. Rd1 {[%clk 0:01:06]}  Re8 {[%clk 0:01:19]} 32. Qf3 {[%clk 0:01:03]}  Qa5 {[%clk 0:01:14]} 33. Nf5 {[%clk 0:01:01]}  Nxf5 {[%clk 0:01:13]} 34. Bxf5 {[%clk 0:01:01]}  Rc3 {[%clk 0:01:08]} 35. Qf4 {[%clk 0:00:53]}  Bd5 {[%clk 0:01:04]} 36. Bd3 {[%clk 0:00:41]}  Rxd3 {[%clk 0:00:55]} 37. Rxd3 {[%clk 0:00:38]}  Re1+ {[%clk 0:00:55]} 38. Kh2 {[%clk 0:00:22]}  Rxb1 {[%clk 0:00:55]} 39. Qb8+ {[%clk 0:00:19]}  Kh7 {[%clk 0:00:54]} 40. Re3 {[%clk 0:00:17]}  Rh1+ {[%clk 0:00:47]} 41. Kg3 {[%clk 0:00:17]}  Rg1+ {[%clk 0:00:46]} 42. Kf4 {[%clk 0:00:16]}  Bf7 {[%clk 0:00:38]} 43. Qxb7 {[%clk 0:00:12]}  Qg5+ {[%clk 0:00:39]} 44. Kf3 {[%clk 0:00:13]}  Bd5+ {[%clk 0:00:37]} 0-1


[Site "https://www.chess.com"]

[Event "Titled Tuesday Blitz January 03 Early 2023"]
[White "Mazibuko, Khanya"]
[Black "Mihajlov, Sebastian"]
[WhiteFideId "14321041"]
[BlackFideId "1512110"]
[WhiteElo "1913"]
[BlackElo "2373"]
[Result "0-1"]
[Round "03"]
[TimeControl "180+2"]
[Date "2023.01.03"]
[WhiteClock "0:00:10"]
[BlackClock "0:00:10"]

1. e4 {[%clk 0:03:00]}  g6 {[%clk 0:02:58]} 2. d4 {[%clk 0:03:00]}  Bg7 {[%clk 0:02:59]} 3. Nc3 {[%clk 0:03:00]}  d6 {[%clk 0:03:00]} 4. Bf4 {[%clk 0:02:57]}  a6 {[%clk 0:02:52]} 5. Nf3 {[%clk 0:02:56]}  b5 {[%clk 0:02:50]} 6. Bd3 {[%clk 0:02:56]}  Bb7 {[%clk 0:02:48]} 7. O-O {[%clk 0:02:51]}  e6 {[%clk 0:02:38]} 8. Qd2 {[%clk 0:02:48]}  c5 {[%clk 0:02:25]} 9. dxc5 {[%clk 0:02:43]}  dxc5 {[%clk 0:02:25]} 10. e5 {[%clk 0:02:42]}  Bxf3 {[%clk 0:02:19]} 11. gxf3 {[%clk 0:02:40]}  Nc6 {[%clk 0:02:08]} 12. Qe3 {[%clk 0:02:34]}  Nd4 {[%clk 0:01:36]} 13. Ne4 {[%clk 0:02:31]}  Ne7 {[%clk 0:01:01]} 14. Nd6+ {[%clk 0:02:27]}  Kf8 {[%clk 0:01:01]} 15. c3 {[%clk 0:02:27]}  Nd5 {[%clk 0:00:54]} 16. Qe4 {[%clk 0:02:19]}  Nf5 {[%clk 0:00:54]} 17. Rad1 {[%clk 0:02:05]}  c4 {[%clk 0:00:52]} 18. Bc2 {[%clk 0:02:01]}  Rb8 {[%clk 0:00:50]} 19. Bg3 {[%clk 0:01:51]}  h5 {[%clk 0:00:49]} 20. Nxf5 {[%clk 0:01:36]}  gxf5 {[%clk 0:00:49]} 21. Qd4 {[%clk 0:01:27]}  h4 {[%clk 0:00:31]} 22. Bf4 {[%clk 0:01:26]}  Qc7 {[%clk 0:00:31]} 23. Rfe1 {[%clk 0:01:14]}  Rh5 {[%clk 0:00:25]} 24. Bc1 {[%clk 0:01:08]}  Kg8 {[%clk 0:00:24]} 25. Kh1 {[%clk 0:00:57]}  Rd8 {[%clk 0:00:22]} 26. f4 {[%clk 0:00:46]}  Qc6 {[%clk 0:00:20]} 27. f3 {[%clk 0:00:40]}  Bf8 {[%clk 0:00:20]} 28. Qg1+ {[%clk 0:00:36]}  Kh8 {[%clk 0:00:20]} 29. Qg2 {[%clk 0:00:22]}  Bh6 {[%clk 0:00:18]} 30. Rg1 {[%clk 0:00:19]}  Qa8 {[%clk 0:00:18]} 31. Qh3 {[%clk 0:00:18]}  Rg8 {[%clk 0:00:17]} 32. Rxg8+ {[%clk 0:00:17]}  Qxg8 {[%clk 0:00:18]} 33. Rg1 {[%clk 0:00:17]}  Qf8 {[%clk 0:00:18]} 34. Rg5 {[%clk 0:00:12]}  Bxg5 {[%clk 0:00:14]} 35. fxg5 {[%clk 0:00:13]}  Qc5 {[%clk 0:00:13]} 36. f4 {[%clk 0:00:13]}  Qf2 {[%clk 0:00:13]} 37. Bd1 {[%clk 0:00:10]}  Qe1+ {[%clk 0:00:10]} 0-1


[Site "https://www.chess.com"]

[Event "Titled Tuesday Blitz January 03 Early 2023"]
[White "Graca, Robert"]
[Black "Zanette, Edgard Vinicius"]
[WhiteFideId "644943"]
[BlackFideId "2109263"]
[WhiteElo "2270"]
[BlackElo "2085"]
[Result "1-0"]
[Round "03"]
[TimeControl "180+2"]
[Date "2023.01.03"]
[WhiteClock "0:01:52"]
[BlackClock "0:01:32"]

1. Nf3 {[%clk 0:02:54]}  Nf6 {[%clk 0:02:59]} 2. c4 {[%clk 0:02:54]}  e6 {[%clk 0:02:58]} 3. Nc3 {[%clk 0:02:54]}  d5 {[%clk 0:02:58]} 4. d4 {[%clk 0:02:54]}  Bb4 {[%clk 0:02:57]} 5. Bg5 {[%clk 0:02:54]}  O-O {[%clk 0:02:56]} 6. e3 {[%clk 0:02:54]}  c5 {[%clk 0:02:55]} 7. cxd5 {[%clk 0:02:54]}  exd5 {[%clk 0:02:55]} 8. Bd3 {[%clk 0:02:54]}  Nc6 {[%clk 0:02:52]} 9. O-O {[%clk 0:02:54]}  cxd4 {[%clk 0:02:52]} 10. Nxd4 {[%clk 0:02:48]}  Nxd4 {[%clk 0:02:52]} 11. exd4 {[%clk 0:02:49]}  Be6 {[%clk 0:02:50]} 12. Rc1 {[%clk 0:02:44]}  Be7 {[%clk 0:02:48]} 13. Re1 {[%clk 0:02:40]}  Rc8 {[%clk 0:02:44]} 14. h3 {[%clk 0:02:39]}  h6 {[%clk 0:02:44]} 15. Bh4 {[%clk 0:02:39]}  a6 {[%clk 0:02:21]} 16. Bb1 {[%clk 0:02:39]}  Re8 {[%clk 0:02:09]} 17. Qd3 {[%clk 0:02:38]}  g6 {[%clk 0:02:08]} 18. Rxe6 {[%clk 0:02:35]}  Rxc3 {[%clk 0:02:01]} 19. bxc3 {[%clk 0:02:19]}  g5 {[%clk 0:01:52]} 20. Rxe7 {[%clk 0:01:55]}  Qxe7 {[%clk 0:01:41]} 21. Bg3 {[%clk 0:01:55]}  b5 {[%clk 0:01:32]} 22. Be5 {[%clk 0:01:52]} 1-0


[Site "https://www.chess.com"]

[Event "Titled Tuesday Blitz January 03 Early 2023"]
[White "Viskelis, Darius"]
[Black "Hirneise, Jens"]
[WhiteFideId "12800830"]
[BlackFideId "24614734"]
[WhiteElo "2166"]
[BlackElo "2277"]
[Result "0-1"]
[Round "03"]
[TimeControl "180+2"]
[Date "2023.01.03"]
[WhiteClock "0:00:01"]
[BlackClock "0:00:52"]

1. e4 {[%clk 0:02:59]}  c6 {[%clk 0:02:58]} 2. d4 {[%clk 0:02:59]}  d5 {[%clk 0:02:57]} 3. exd5 {[%clk 0:02:59]}  Qxd5 {[%clk 0:02:54]} 4. c4 {[%clk 0:03:00]}  Qd8 {[%clk 0:02:51]} 5. Nc3 {[%clk 0:03:00]}  g6 {[%clk 0:02:50]} 6. Be3 {[%clk 0:02:49]}  Nf6 {[%clk 0:02:48]} 7. Nf3 {[%clk 0:02:45]}  Bg7 {[%clk 0:02:45]} 8. h3 {[%clk 0:02:44]}  O-O {[%clk 0:02:39]} 9. Be2 {[%clk 0:02:37]}  Bf5 {[%clk 0:02:36]} 10. O-O {[%clk 0:02:37]}  Ne4 {[%clk 0:02:33]} 11. Nxe4 {[%clk 0:02:28]}  Bxe4 {[%clk 0:02:34]} 12. Qd2 {[%clk 0:02:25]}  Nd7 {[%clk 0:02:26]} 13. Bh6 {[%clk 0:02:18]}  Bxf3 {[%clk 0:02:23]} 14. Bxf3 {[%clk 0:02:14]}  Bxh6 {[%clk 0:02:22]} 15. Qxh6 {[%clk 0:02:15]}  Nb6 {[%clk 0:02:21]} 16. c5 {[%clk 0:02:00]}  Nd5 {[%clk 0:02:02]} 17. Rfe1 {[%clk 0:01:59]}  e6 {[%clk 0:02:00]} 18. Re4 {[%clk 0:01:43]}  Qf6 {[%clk 0:01:58]} 19. a3 {[%clk 0:01:21]}  Rfd8 {[%clk 0:01:48]} 20. Re5 {[%clk 0:01:07]}  Ne7 {[%clk 0:01:41]} 21. Rd1 {[%clk 0:00:47]}  Rd7 {[%clk 0:01:23]} 22. Rh5 {[%clk 0:00:20]}  Qg7 {[%clk 0:01:20]} 23. Qxg7+ {[%clk 0:00:20]}  Kxg7 {[%clk 0:01:21]} 24. Re5 {[%clk 0:00:18]}  Rad8 {[%clk 0:01:18]} 25. Re4 {[%clk 0:00:17]}  Nf5 {[%clk 0:01:19]} 26. b4 {[%clk 0:00:16]}  Nxd4 {[%clk 0:01:19]} 27. Rd3 {[%clk 0:00:14]}  Ne2+ {[%clk 0:01:10]} 28. Bxe2 {[%clk 0:00:14]}  Rxd3 {[%clk 0:01:11]} 29. Bxd3 {[%clk 0:00:14]}  Rxd3 {[%clk 0:01:12]} 30. a4 {[%clk 0:00:13]}  Kf6 {[%clk 0:01:01]} 31. Kf1 {[%clk 0:00:12]}  e5 {[%clk 0:01:00]} 32. Rc4 {[%clk 0:00:11]}  Rd4 {[%clk 0:00:59]} 33. Rxd4 {[%clk 0:00:10]}  exd4 {[%clk 0:01:00]} 34. Ke2 {[%clk 0:00:11]}  Ke5 {[%clk 0:01:01]} 35. Kd3 {[%clk 0:00:11]}  Kd5 {[%clk 0:01:01]} 36. f4 {[%clk 0:00:11]}  f5 {[%clk 0:00:56]} 37. g4 {[%clk 0:00:09]}  h6 {[%clk 0:00:51]} 38. gxf5 {[%clk 0:00:07]}  gxf5 {[%clk 0:00:52]} 39. h4 {[%clk 0:00:06]}  h5 {[%clk 0:00:52]} 40. a5 {[%clk 0:00:01]}  a6 {[%clk 0:00:52]} 0-1


[Site "https://www.chess.com"]

[Event "Titled Tuesday Blitz January 03 Early 2023"]
[White "Cappelletto, Joshuaede"]
[Black "Lopez Del Alamo, Antonio"]
[WhiteFideId "2824383"]
[BlackFideId "2227339"]
[WhiteElo "2266"]
[BlackElo "2280"]
[Result "0-1"]
[Round "03"]
[TimeControl "180+2"]
[Date "2023.01.03"]
[WhiteClock "0:01:09"]
[BlackClock "0:00:36"]

1. c4 {[%clk 0:03:00]}  Nf6 {[%clk 0:02:59]} 2. Nc3 {[%clk 0:02:59]}  g6 {[%clk 0:02:59]} 3. e4 {[%clk 0:02:55]}  d6 {[%clk 0:02:59]} 4. d4 {[%clk 0:02:54]}  Bg7 {[%clk 0:03:00]} 5. f3 {[%clk 0:02:54]}  O-O {[%clk 0:03:00]} 6. Be3 {[%clk 0:02:54]}  b6 {[%clk 0:03:01]} 7. Qd2 {[%clk 0:02:52]}  c5 {[%clk 0:03:01]} 8. Nge2 {[%clk 0:02:49]}  Re8 {[%clk 0:03:00]} 9. O-O-O {[%clk 0:02:43]}  Nbd7 {[%clk 0:02:58]} 10. Kb1 {[%clk 0:02:43]}  a6 {[%clk 0:02:57]} 11. g4 {[%clk 0:02:40]}  Bb7 {[%clk 0:02:47]} 12. g5 {[%clk 0:02:34]}  Nh5 {[%clk 0:02:44]} 13. Ng3 {[%clk 0:02:34]}  Nxg3 {[%clk 0:02:39]} 14. hxg3 {[%clk 0:02:35]}  Qc7 {[%clk 0:02:35]} 15. Qh2 {[%clk 0:02:34]}  Nf8 {[%clk 0:02:35]} 16. f4 {[%clk 0:02:11]}  cxd4 {[%clk 0:02:02]} 17. Bxd4 {[%clk 0:02:11]}  Bxd4 {[%clk 0:02:03]} 18. Rxd4 {[%clk 0:02:11]}  b5 {[%clk 0:02:03]} 19. cxb5 {[%clk 0:02:07]}  axb5 {[%clk 0:02:02]} 20. Bxb5 {[%clk 0:02:07]}  Reb8 {[%clk 0:02:01]} 21. Bc4 {[%clk 0:02:03]}  Ba6 {[%clk 0:01:55]} 22. Bb3 {[%clk 0:02:01]}  Qb6 {[%clk 0:01:36]} 23. Qd2 {[%clk 0:01:47]}  Bb7 {[%clk 0:01:32]} 24. Nd5 {[%clk 0:01:39]}  Bxd5 {[%clk 0:01:31]} 25. Rxd5 {[%clk 0:01:40]}  Qa6 {[%clk 0:01:04]} 26. f5 {[%clk 0:01:37]}  Rxb3 {[%clk 0:00:55]} 27. axb3 {[%clk 0:01:33]}  Qa1+ {[%clk 0:00:54]} 28. Kc2 {[%clk 0:01:33]}  Qxh1 {[%clk 0:00:54]} 29. Kd3 {[%clk 0:01:26]}  Rc8 {[%clk 0:00:48]} 30. b4 {[%clk 0:01:14]}  Rc1 {[%clk 0:00:39]} 31. Ke3 {[%clk 0:01:11]}  Re1+ {[%clk 0:00:38]} 32. Kf4 {[%clk 0:01:09]}  Qxe4# {[%clk 0:00:36]} 0-1


[Site "https://www.chess.com"]